[Event "11th LCC FIDE Open 2019"]
[Site "London"]
[Date "2019.12.03"]
[Round "6.29"]
[White "Papadiamandis, Elliot"]
[Black "Semprun Martinez, Fernando"]
[Result "1/2-1/2"]
[ECO "B33"]
[WhiteElo "2220"]
[BlackElo "2071"]
[Annotator "NA"]
[PlyCount "63"]
[EventDate "2019.11.29"]
[EventType "swiss"]
[EventCountry "ENG"]
[SourceTitle "playchess.com"]
[Source "ChessBase"]
[SourceQuality "1"]
[TimeControl "40/5400+30:1800+30"]

1. e4 {[%emt 0:00:00]} c5 {[%emt 0:00:00]} 2. Nf3 {[%emt 0:00:00]} Nc6 {[%emt 0:00:00]} 3. d4 {[%emt 0:00:02]} cxd4 {[%emt 0:00:00]} 4. Nxd4 {[%emt 0:00:22]} Nf6 {[%emt 0:00:00]} 5. Nc3 {[%emt 0:00:09]} e5 {[%emt 0:00:00]} 6. Ndb5 {[%emt 0:00:21]} d6 {[%emt 0:00:03]} 7. Bg5 {[%emt 0:00:10]} a6 {[%emt 0:00:01]} 8. Na3 {[%emt 0:00:32]} b5 {[%emt 0:00:03]} 9. Nd5 {[%emt 0:00:08]} Be7 {[%emt 0:00:06]} 10. Bxf6 {[%emt 0:00:12]} Bxf6 {[%emt 0:00:03]} 11. c4 {[%emt 0:00:25]} b4 {[%emt 0:00:06]} 12. Nc2 {[%emt 0:00:09]} O-O {[%emt 0:00:08]} 13. Be2 {[%emt 0:00:44]} a5 {[%emt 0:00:04]} 14. O-O {[%emt 0:00:34]} Bg5 {[%emt 0:01:10]} 15. Qd3 {[%emt 0:01:16]} Be6 {[%emt 0:00:27]} 16. Rad1 {[%emt 0:05:25]} g6 {[%emt 0:03:47]} 17. a3 {[%emt 0:03:34]} Rb8 {[%emt 0:04:44]} 18. axb4 {[%emt 0:03:06]} axb4 {[%emt 0:00:12]} 19. b3 {[%emt 0:01:07]} Qa5 {[%emt 0:21:48]} 20. Ra1 {[%emt 0:13:34]} Qc5 {[%emt 0:01:10]} 21. Nc7 {[%emt 0:00:53]} Bc8 {[%emt 0:03:19]} 22. Rfd1 {[%emt 0:03:36]} Rd8 {[%emt 0:00:45]} 23. Qg3 {[%emt 0:14:34]} Be7 {[%emt 0:09:20]} 24. Bg4 {[%emt 0:05:45]} Bb7 {[%emt 0:06:23]} 25. Nd5 {[%emt 0:02:34]} Ra8 {[%emt 0:01:49]} 26. Ncxb4 {[%emt 0:05:30]} Nxb4 {[%emt 0:10:23]} 27. Nxe7+ {[%emt 0:00:55]} Kf8 {[%emt 0:00:15]} 28. Nd5 {[%emt 0:02:43]} Bxd5 {[%emt 0:02:16]} 29. exd5 {[%emt 0:01:37]} h5 {[%emt 0:02:56]} 30. Be2 {[%emt 0:01:21]} Nc2 {[%emt 0:04:03]} 31. Rxa8 {[%emt 0:01:23]} Rxa8 {[%emt 0:00:08]} 32. Rb1 {[%emt 0:07:36]} 1/2-1/2

[Event "11th LCC FIDE Open 2019"]
[Site "London"]
[Date "2019.12.03"]
[Round "6.31"]
[White "Manfay, Mate"]
[Black "Yoon, Jacob D"]
[Result "1/2-1/2"]
[ECO "A13"]
[WhiteElo "2197"]
[BlackElo "2037"]
[Annotator "ChessBase"]
[PlyCount "97"]
[EventDate "2019.11.29"]
[EventType "swiss"]
[EventCountry "ENG"]
[SourceTitle "playchess.com"]
[Source "ChessBase"]
[SourceQuality "1"]
[TimeControl "40/5400+30:1800+30"]

1. c4 {[%emt 0:12:22]} e6 {[%emt 0:00:17]} 2. Nf3 {[%emt 0:00:10]} d5 {[%emt 0:00:52]} 3. g3 {[%emt 0:00:06]} dxc4 {[%emt 0:00:05]} 4. Qa4+ {[%emt 0:00:21]} Nd7 {[%emt 0:00:23]} 5. Bg2 {[%emt 0:00:11]} a6 {[%emt 0:00:37]} 6. Qxc4 {[%emt 0:00:05]} b5 {[%emt 0:00:19]} 7. Qb3 {[%emt 0:00:18]} Rb8 {[%emt 0:01:42]} 8. d3 {[%emt 0:02:13]} Bb7 {[%emt 0:00:24]} 9. O-O {[%emt 0:00:09]} Ngf6 {[%emt 0:02:52]} 10. Rd1 {[%emt 0:03:41]} Bd6 {[%emt 0:03:58]} 11. Nc3 {[%emt 0:02:06]} O-O {[%emt 0:01:16]} 12. e4 {[%emt 0:02:20]} c5 {[%emt 0:02:40]} 13. a4 {[%emt 0:04:51]} Bc6 {[%emt 0:07:19]} 14. axb5 {[%emt 0:00:40]} axb5 {[%emt 0:00:19]} 15. Ra6 {[%emt 0:06:42]} Rb6 {[%emt 0:03:39]} 16. Rxb6 {[%emt 0:00:22]} Qxb6 {[%emt 0:00:36]} 17. Qc2 {[%emt 0:05:43]} Ne5 {[%emt 0:08:13]} 18. Nxe5 {[%emt 0:09:30]} Bxe5 {[%emt 0:00:54]} 19. Ne2 {[%emt 0:00:43]} Bd6 {[%emt 0:05:53]} 20. h3 {[%emt 0:06:08]} Bb7 {[%emt 0:14:17]} 21. Be3 {[%emt 0:00:15]} Rc8 {[%emt 0:04:14]} 22. Rc1 {[%emt 0:00:36]} h6 {[%emt 0:04:22]} 23. Nc3 {[%emt 0:10:01]} Nd7 {[%emt 0:09:39]} 24. f4 {[%emt 0:03:42]} Be7 {[%emt 0:04:20]} 25. Qb3 {[%emt 0:04:27]} c4 {[%emt 0:09:09]} 26. Bxb6 {[%emt 0:00:14]} cxb3 {[%emt 0:00:05]} 27. Be3 {[%emt 0:00:48]} b4 {[%emt 0:07:31]} 28. Ne2 {[%emt 0:00:05]} Rc2 {[%emt 0:00:37]} 29. Rxc2 {[%emt 0:08:50]} bxc2 {[%emt 0:00:09]} 30. Kf1 {[%emt 0:00:17]} Ba6 {[%emt 0:01:21]} 31. Nc1 {[%emt 0:00:19]} Bc5 {[%emt 0:03:11]} 32. Ke2 {[%emt 0:01:10]} Bxe3 {[%emt 0:01:13]} 33. Kxe3 {[%emt 0:00:04]} Nc5 {[%emt 0:00:05]} 34. Bf1 {[%emt 0:00:11]} Na4 {[%emt 0:03:08]} 35. Kd2 {[%emt 0:00:27]} Nxb2 {[%emt 0:00:29]} 36. Kxc2 {[%emt 0:00:19]} Na4 {[%emt 0:00:03]} 37. Kb3 {[%emt 0:00:51]} Nc5+ {[%emt 0:00:13]} 38. Kxb4 {[%emt 0:00:29]} Nxe4 {[%emt 0:00:04]} 39. dxe4 {[%emt 0:00:28]} Bxf1 {[%emt 0:00:04]} 40. h4 {[%emt 0:00:06]} g5 {[%emt 0:01:40]} 41. hxg5 {[%emt 0:30:58]} hxg5 {[%emt 0:06:42]} 42. Nb3 {[%emt 0:00:00]} gxf4 {[%emt 0:00:58]} 43. gxf4 {[%emt 0:00:00]} Bg2 {[%emt 0:00:05]} 44. Nc5 {[%emt 0:00:00]} Kg7 {[%emt 0:00:42]} 45. Kc4 {[%emt 0:00:00]} Kf6 {[%emt 0:06:51]} 46. Kd4 {[%emt 0:00:00]} Bf1 {[%emt 0:00:46]} 47. Nd7+ {[%emt 0:00:00]} Ke7 {[%emt 0:00:07]} 48. Ne5 {[%emt 0:00:00]} Bb5 {[%emt 0:01:09]} 49. Nf3 {[%emt 0:00:00]} 1/2-1/2

[Event "11th LCC FIDE Open 2019"]
[Site "London"]
[Date "2019.12.03"]
[Round "6.32"]
[White "Abrahams, Daniel"]
[Black "Dias, Savin"]
[Result "1/2-1/2"]
[ECO "A37"]
[WhiteElo "2185"]
[BlackElo "1916"]
[Annotator "ChessBase"]
[PlyCount "109"]
[EventDate "2019.11.29"]
[EventType "swiss"]
[EventCountry "ENG"]
[SourceTitle "playchess.com"]
[Source "ChessBase"]
[SourceQuality "1"]
[TimeControl "40/5400+30:1800+30"]

1. c4 {[%emt 0:00:00]} c5 {[%emt 0:00:00]} 2. g3 {[%emt 0:00:00]} g6 {[%emt 0:00:00]} 3. Bg2 {[%emt 0:00:01]} Bg7 {[%emt 0:00:00]} 4. Nc3 {[%emt 0:00:16]} Nc6 {[%emt 0:00:00]} 5. Nf3 {[%emt 0:00:40]} d6 {[%emt 0:00:09]} 6. O-O {[%emt 0:00:43]} e6 {[%emt 0:00:35]} 7. e3 {[%emt 0:01:14]} Nge7 {[%emt 0:00:13]} 8. d4 {[%emt 0:00:16]} O-O {[%emt 0:02:01]} 9. b3 {[%emt 0:05:00]} e5 {[%emt 0:04:40]} 10. dxc5 {[%emt 0:00:35]} dxc5 {[%emt 0:01:44]} 11. Bb2 {[%emt 0:01:20]} Bg4 {[%emt 0:04:52]} 12. Qb1 {[%emt 0:07:11]} Bf5 {[%emt 0:11:58]} 13. Ne4 {[%emt 0:04:38]} Bxe4 {[%emt 0:04:45]} 14. Qxe4 {[%emt 0:00:03]} f5 {[%emt 0:00:24]} 15. Qb1 {[%emt 0:05:49]} h6 {[%emt 0:01:33]} 16. Rd1 {[%emt 0:00:25]} Qc7 {[%emt 0:00:16]} 17. Ne1 {[%emt 0:01:25]} Rad8 {[%emt 0:02:49]} 18. Nd3 {[%emt 0:00:25]} b6 {[%emt 0:00:39]} 19. Qc2 {[%emt 0:00:16]} g5 {[%emt 0:08:40]} 20. f4 {[%emt 0:03:43]} e4 {[%emt 0:00:30]} 21. Bxg7 {[%emt 0:00:22]} Kxg7 {[%emt 0:00:30]} 22. Qb2+ {[%emt 0:00:31]} Kg6 {[%emt 0:00:41]} 23. Nf2 {[%emt 0:00:21]} gxf4 {[%emt 0:01:27]} 24. gxf4 {[%emt 0:00:06]} Kf7 {[%emt 0:01:23]} 25. Kh1 {[%emt 0:00:23]} Rxd1+ {[%emt 0:03:56]} 26. Rxd1 {[%emt 0:00:20]} Rd8 {[%emt 0:01:09]} 27. Rg1 {[%emt 0:01:24]} Rg8 {[%emt 0:00:21]} 28. Qe2 {[%emt 0:00:26]} Qd6 {[%emt 0:02:09]} 29. Bh3 {[%emt 0:08:32]} Rxg1+ {[%emt 0:00:47]} 30. Kxg1 {[%emt 0:00:08]} Kg7 {[%emt 0:01:28]} 31. Kf1 {[%emt 0:00:24]} Nb4 {[%emt 0:02:44]} 32. a3 {[%emt 0:01:43]} Nbc6 {[%emt 0:00:10]} 33. Qh5 {[%emt 0:00:43]} Qf6 {[%emt 0:01:43]} 34. Qd1 {[%emt 0:01:03]} Qc3 {[%emt 0:01:10]} 35. Qd7 {[%emt 0:00:16]} Qc1+ {[%emt 0:01:01]} 36. Nd1 {[%emt 0:02:01]} Qxa3 {[%emt 0:02:32]} 37. Bxf5 {[%emt 0:00:31]} Qxb3 {[%emt 0:00:31]} 38. Bxe4 {[%emt 0:00:19]} Qxc4+ {[%emt 0:00:10]} 39. Bd3 {[%emt 0:00:12]} Qd5 {[%emt 0:02:18]} 40. Qg4+ {[%emt 0:00:08]} Kf7 {[%emt 0:02:40]} 41. Nf2 {[%emt 0:30:20]} Nb4 {[%emt 0:42:17]} 42. Be4 {[%emt 0:05:29]} Qc4+ {[%emt 0:00:50]} 43. Kg2 {[%emt 0:00:07]} Nbd5 {[%emt 0:01:02]} 44. Qh5+ {[%emt 0:00:24]} Kg8 {[%emt 0:04:12]} 45. Qxh6 {[%emt 0:06:36]} Nxe3+ {[%emt 0:11:37]} 46. Kf3 {[%emt 0:01:17]} Nf1 {[%emt 0:03:10]} 47. Bh7+ {[%emt 0:04:41]} Kf7 {[%emt 0:00:16]} 48. Ne4 {[%emt 0:00:28]} Nxh2+ {[%emt 0:00:00]} 49. Qxh2 {[%emt 0:00:00]} Qd3+ {[%emt 0:00:00]} 50. Kg2 {[%emt 0:00:00]} Qe2+ {[%emt 0:00:00]} 51. Nf2 {[%emt 0:00:00]} Nd5 {[%emt 0:00:00]} 52. Bd3 {[%emt 0:00:00]} Ne3+ {[%emt 0:00:00]} 53. Kh1 {[%emt 0:00:00]} Qe1+ {[%emt 0:00:00]} 54. Qg1 {[%emt 0:00:00]} Qxg1+ {[%emt 0:00:00]} 55. Kxg1 {[%emt 0:00:00]} 1/2-1/2

[Event "11th LCC FIDE Open 2019"]
[Site "London"]
[Date "2019.12.03"]
[Round "6.33"]
[White "Grey, Nicholas D"]
[Black "Smith, Andrew P"]
[Result "0-1"]
[ECO "C41"]
[WhiteElo "1692"]
[BlackElo "2172"]
[Annotator "ChessBase"]
[PlyCount "44"]
[EventDate "2019.11.29"]
[EventType "swiss"]
[EventCountry "ENG"]
[SourceTitle "playchess.com"]
[Source "ChessBase"]
[SourceQuality "1"]
[TimeControl "40/5400+30:1800+30"]

1. e4 {[%emt 0:01:16]} e5 {[%emt 0:01:43]} 2. Nf3 {[%emt 0:00:32]} d6 {[%emt 0:00:07]} 3. d4 {[%emt 0:00:50]} Nd7 {[%emt 0:00:07]} 4. Bc4 {[%emt 0:01:16]} Qe7 {[%emt 0:00:55]} 5. Nc3 {[%emt 0:03:04]} c6 {[%emt 0:00:07]} 6. a4 {[%emt 0:20:50]} h6 {[%emt 0:04:30]} 7. O-O {[%emt 0:06:51]} g6 {[%emt 0:14:14]} 8. Re1 {[%emt 0:11:54]} Bg7 {[%emt 0:02:32]} 9. Be3 {[%emt 0:03:36]} Ngf6 {[%emt 0:00:40]} 10. dxe5 {[%emt 0:01:59]} dxe5 {[%emt 0:04:40]} 11. h3 {[%emt 0:04:34]} O-O {[%emt 0:05:40]} 12. Qd2 {[%emt 0:05:56]} Kh7 {[%emt 0:01:34]} 13. Rad1 {[%emt 0:04:18]} Nc5 {[%emt 0:03:10]} 14. Bd3 {[%emt 0:08:53]} Rd8 {[%emt 0:06:02]} 15. Qe2 {[%emt 0:02:04]} Nh5 {[%emt 0:02:32]} 16. Qf1 {[%emt 0:08:43]} Nf4 {[%emt 0:04:03]} 17. Rd2 {[%emt 0:02:18]} Nfxd3 {[%emt 0:07:48]} 18. cxd3 {[%emt 0:00:37]} b6 {[%emt 0:05:03]} 19. b4 {[%emt 0:02:08]} Nb3 {[%emt 0:01:32]} 20. Rb2 {[%emt 0:00:44]} Qxb4 {[%emt 0:01:03]} 21. Reb1 {[%emt 0:01:23]} Be6 {[%emt 0:05:11]} 22. Qe1 {[%emt 0:02:03]} Rxd3 {[%emt 0:05:12]} 0-1

[Event "11th LCC FIDE Open 2019"]
[Site "London"]
[Date "2019.12.03"]
[Round "6.34"]
[White "Ogunshola, Olugbemiga (Ben)"]
[Black "Royal, Shreyas"]
[Result "0-1"]
[ECO "A13"]
[WhiteElo "2169"]
[BlackElo "1941"]
[Annotator "ChessBase"]
[PlyCount "48"]
[EventDate "2019.11.29"]
[EventType "swiss"]
[EventCountry "ENG"]
[SourceTitle "playchess.com"]
[Source "ChessBase"]
[SourceQuality "1"]
[TimeControl "40/5400+30:1800+30"]

1. c4 {[%emt 0:02:32]} e6 {[%emt 0:00:26]} 2. Nf3 {[%emt 0:00:21]} d5 {[%emt 0:01:05]} 3. e3 {[%emt 0:04:45]} Nf6 {[%emt 0:03:13]} 4. b3 {[%emt 0:00:30]} Nbd7 {[%emt 0:05:24]} 5. Bb2 {[%emt 0:00:13]} Be7 {[%emt 0:01:41]} 6. Be2 {[%emt 0:01:41]} dxc4 {[%emt 0:01:10]} 7. bxc4 {[%emt 0:00:13]} b6 {[%emt 0:02:24]} 8. O-O {[%emt 0:10:16]} Bb7 {[%emt 0:02:13]} 9. Qc2 {[%emt 0:01:00]} O-O {[%emt 0:01:07]} 10. d3 {[%emt 0:02:44]} c5 {[%emt 0:08:35]} 11. Ne1 {[%emt 0:11:09]} Qc7 {[%emt 0:05:13]} 12. Nc3 {[%emt 0:01:50]} a6 {[%emt 0:00:38]} 13. f4 {[%emt 0:00:41]} e5 {[%emt 0:06:42]} 14. f5 {[%emt 0:00:50]} e4 {[%emt 0:00:06]} 15. dxe4 {[%emt 0:05:02]} Bd6 {[%emt 0:01:51]} 16. Nf3 {[%emt 0:03:50]} Ng4 {[%emt 0:01:24]} 17. e5 {[%emt 0:07:28]} Ndxe5 {[%emt 0:04:29]} 18. Nd5 {[%emt 0:06:45]} Bxd5 {[%emt 0:01:09]} 19. cxd5 {[%emt 0:04:46]} Nxe3 {[%emt 0:03:38]} 20. Qe4 {[%emt 0:09:19]} Nxf1 {[%emt 0:01:37]} 21. Nxe5 {[%emt 0:02:34]} Rfe8 {[%emt 0:01:47]} 22. f6 {[%emt 0:01:12]} Bxe5 {[%emt 0:01:28]} 23. Qg4 {[%emt 0:01:25]} g6 {[%emt 0:00:54]} 24. Bxe5 {[%emt 0:03:35]} Qxe5 {[%emt 0:00:11]} 0-1

[Event "11th LCC FIDE Open 2019"]
[Site "London"]
[Date "2019.12.03"]
[Round "6.37"]
[White "Ifalore, Michael"]
[Black "Hill, Alistair"]
[Result "0-1"]
[ECO "B40"]
[WhiteElo "2009"]
[BlackElo "2193"]
[Annotator "NA"]
[PlyCount "74"]
[EventDate "2019.11.29"]
[EventType "swiss"]
[EventCountry "ENG"]
[SourceTitle "playchess.com"]
[Source "ChessBase"]
[SourceQuality "1"]
[TimeControl "40/5400+30:1800+30"]

1. e4 {[%emt 0:00:00]} c5 {[%emt 0:04:56]} 2. Nf3 {[%emt 0:00:00]} e6 {[%emt 0:00:17]} 3. b3 {[%emt 0:00:00]} b6 {[%emt 0:00:04]} 4. Bb2 {[%emt 0:00:12]} Bb7 {[%emt 0:00:02]} 5. Bd3 {[%emt 0:00:16]} Nc6 {[%emt 0:04:54]} 6. c3 {[%emt 0:01:33]} d5 {[%emt 0:04:49]} 7. exd5 {[%emt 0:00:50]} Qxd5 {[%emt 0:03:27]} 8. Qe2 {[%emt 0:00:54]} Nf6 {[%emt 0:00:06]} 9. Na3 {[%emt 0:07:04]} Be7 {[%emt 0:03:34]} 10. Nb5 {[%emt 0:08:03]} Qd7 {[%emt 0:00:44]} 11. O-O {[%emt 0:04:22]} O-O {[%emt 0:00:32]} 12. Bc2 {[%emt 0:01:57]} a6 {[%emt 0:01:04]} 13. Na3 {[%emt 0:00:28]} b5 {[%emt 0:11:25]} 14. Rfd1 {[%emt 0:04:22]} Rfd8 {[%emt 0:02:07]} 15. Rac1 {[%emt 0:01:07]} Rac8 {[%emt 0:01:42]} 16. Bb1 {[%emt 0:00:27]} Qc7 {[%emt 0:04:26]} 17. c4 {[%emt 0:02:01]} b4 {[%emt 0:04:26]} 18. Nc2 {[%emt 0:01:00]} e5 {[%emt 0:08:56]} 19. Nxe5 {[%emt 0:03:57]} Bd6 {[%emt 0:00:01]} 20. Nxc6 {[%emt 0:02:59]} Bxh2+ {[%emt 0:02:00]} 21. Kh1 {[%emt 0:00:02]} Qxc6 {[%emt 0:02:00]} 22. Ne3 {[%emt 0:00:04]} Bb8 {[%emt 0:05:49]} 23. Rg1 {[%emt 0:05:38]} Ne4 {[%emt 0:02:13]} 24. Nf5 {[%emt 0:00:06]} Qc7 {[%emt 0:05:55]} 25. Nh6+ {[%emt 0:00:05]} gxh6 {[%emt 0:01:19]} 26. Qg4+ {[%emt 0:00:22]} Ng5 {[%emt 0:00:03]} 27. Qh4 {[%emt 0:01:26]} Rxd2 {[%emt 0:02:27]} 28. Bf6 {[%emt 0:02:44]} Rxf2 {[%emt 0:09:57]} 29. Bxg5 {[%emt 0:00:31]} Qh2+ {[%emt 0:00:14]} 30. Qxh2 {[%emt 0:00:11]} Bxh2 {[%emt 0:00:02]} 31. Kxh2 {[%emt 0:00:07]} hxg5 {[%emt 0:00:04]} 32. Kg3 {[%emt 0:00:07]} Rd2 {[%emt 0:00:55]} 33. Rce1 {[%emt 0:00:28]} Rcd8 {[%emt 0:04:03]} 34. Re5 {[%emt 0:00:33]} h6 {[%emt 0:00:04]} 35. Rxc5 {[%emt 0:01:10]} Re8 {[%emt 0:00:49]} 36. Rc7 {[%emt 0:00:40]} Re3+ {[%emt 0:00:26]} 37. Kh2 {[%emt 0:00:26]} g4 {[%emt 0:01:39]} 0-1

[Event "11th LCC FIDE Open 2019"]
[Site "London"]
[Date "2019.12.03"]
[Round "6.39"]
[White "Brozel, Sacha"]
[Black "Sarpotdar, Amogh"]
[Result "1-0"]
[ECO "D34"]
[WhiteElo "2188"]
[BlackElo "2015"]
[Annotator "NA"]
[PlyCount "54"]
[EventDate "2019.11.29"]
[EventType "swiss"]
[EventCountry "ENG"]
[SourceTitle "playchess.com"]
[Source "ChessBase"]
[SourceQuality "1"]
[TimeControl "40/5400+30:1800+30"]

1. c4 {[%emt 0:01:10]} Nf6 {[%emt 0:00:00]} 2. g3 {[%emt 0:00:08]} e6 {[%emt 0:00:00]} 3. Bg2 {[%emt 0:00:11]} d5 {[%emt 0:00:00]} 4. Nf3 {[%emt 0:00:07]} c5 {[%emt 0:00:13]} 5. O-O {[%emt 0:00:12]} Be7 {[%emt 0:00:08]} 6. d4 {[%emt 0:05:28]} O-O {[%emt 0:00:19]} 7. cxd5 {[%emt 0:05:18]} exd5 {[%emt 0:00:11]} 8. Nc3 {[%emt 0:01:46]} Nc6 {[%emt 0:03:35]} 9. Bg5 {[%emt 0:01:30]} c4 {[%emt 0:00:56]} 10. Ne5 {[%emt 0:07:07]} Be6 {[%emt 0:00:29]} 11. Nxc6 {[%emt 0:02:05]} bxc6 {[%emt 0:00:11]} 12. b3 {[%emt 0:03:11]} Qa5 {[%emt 0:03:57]} 13. Qd2 {[%emt 0:08:28]} Bb4 {[%emt 0:19:09]} 14. Bxf6 {[%emt 0:00:47]} gxf6 {[%emt 0:00:44]} 15. Rfc1 {[%emt 0:01:34]} Ba3 {[%emt 0:03:06]} 16. Rc2 {[%emt 0:02:12]} Rad8 {[%emt 0:02:24]} 17. Qf4 {[%emt 0:21:09]} Bd6 {[%emt 0:03:17]} 18. Qc1 {[%emt 0:03:27]} Bf5 {[%emt 0:11:01]} 19. e4 {[%emt 0:01:05]} dxe4 {[%emt 0:00:59]} 20. Nxe4 {[%emt 0:04:49]} Kg7 {[%emt 0:08:54]} 21. Nxd6 {[%emt 0:05:26]} Rxd6 {[%emt 0:04:16]} 22. Rxc4 {[%emt 0:00:09]} Qb6 {[%emt 0:02:59]} 23. Qf4 {[%emt 0:00:30]} Rd5 {[%emt 0:00:55]} 24. Rac1 {[%emt 0:01:34]} Be6 {[%emt 0:00:21]} 25. Rxc6 {[%emt 0:00:58]} Qb4 {[%emt 0:03:35]} 26. Bxd5 {[%emt 0:00:18]} Bxd5 {[%emt 0:00:04]} 27. Qxf6+ {[%emt 0:00:10]} Kg8 {[%emt 0:00:03]} 1-0

[Event "11th LCC FIDE Open 2019"]
[Site "London"]
[Date "2019.12.03"]
[Round "6.41"]
[White "Mata, Adilson"]
[Black "Pasztor, Balazs"]
[Result "0-1"]
[ECO "C45"]
[WhiteElo "1928"]
[BlackElo "2166"]
[Annotator "ChessBase"]
[PlyCount "102"]
[EventDate "2019.11.29"]
[EventType "swiss"]
[EventCountry "ENG"]
[SourceTitle "playchess.com"]
[Source "ChessBase"]
[SourceQuality "1"]
[TimeControl "40/5400+30:1800+30"]

1. e4 {[%emt 0:02:12]} e5 {[%emt 0:00:00]} 2. Nf3 {[%emt 0:00:07]} Nc6 {[%emt 0:00:00]} 3. d4 {[%emt 0:00:10]} exd4 {[%emt 0:00:08]} 4. Nxd4 {[%emt 0:00:08]} Bc5 {[%emt 0:00:47]} 5. Nb3 {[%emt 0:00:18]} Bb6 {[%emt 0:00:34]} 6. Nc3 {[%emt 0:00:16]} Nf6 {[%emt 0:01:25]} 7. Bg5 {[%emt 0:01:25]} h6 {[%emt 0:05:20]} 8. Bh4 {[%emt 0:01:12]} d6 {[%emt 0:01:13]} 9. Bb5 {[%emt 0:06:33]} Bd7 {[%emt 0:12:01]} 10. Qe2 {[%emt 0:07:21]} g5 {[%emt 0:13:36]} 11. Bg3 {[%emt 0:00:31]} Qe7 {[%emt 0:03:43]} 12. O-O-O {[%emt 0:03:43]} O-O-O {[%emt 0:03:23]} 13. h4 {[%emt 0:05:53]} Ne5 {[%emt 0:14:27]} 14. Bxd7+ {[%emt 0:07:08]} Nexd7 {[%emt 0:00:25]} 15. a4 {[%emt 0:01:02]} a6 {[%emt 0:07:33]} 16. a5 {[%emt 0:09:41]} Ba7 {[%emt 0:00:34]} 17. Nd4 {[%emt 0:00:25]} Ne5 {[%emt 0:10:31]} 18. Nf5 {[%emt 0:10:58]} Qe6 {[%emt 0:03:01]} 19. b3 {[%emt 0:05:03]} Nc6 {[%emt 0:02:43]} 20. Rhe1 {[%emt 0:04:28]} Bc5 {[%emt 0:07:38]} 21. Nd5 {[%emt 0:01:51]} Nxd5 {[%emt 0:02:38]} 22. exd5 {[%emt 0:05:30]} Ba3+ {[%emt 0:02:29]} 23. Kb1 {[%emt 0:00:12]} Qf6 {[%emt 0:01:25]} 24. c3 {[%emt 0:04:16]} Qxf5+ {[%emt 0:01:22]} 25. Ka2 {[%emt 0:00:23]} Nb4+ {[%emt 0:02:30]} 26. cxb4 {[%emt 0:04:00]} Bxb4 {[%emt 0:00:05]} 27. Qe4 {[%emt 0:00:19]} Qxe4 {[%emt 0:00:21]} 28. Rxe4 {[%emt 0:00:07]} Bxa5 {[%emt 0:00:48]} 29. b4 {[%emt 0:02:03]} f5 {[%emt 0:00:39]} 30. Rc4 {[%emt 0:02:37]} b5 {[%emt 0:01:08]} 31. Rcd4 {[%emt 0:00:26]} Bb6 {[%emt 0:00:10]} 32. R4d2 {[%emt 0:00:08]} Rde8 {[%emt 0:01:09]} 33. Rc1 {[%emt 0:01:09]} f4 {[%emt 0:00:30]} 34. Bh2 {[%emt 0:00:13]} Re4 {[%emt 0:00:44]} 35. Kb3 {[%emt 0:00:56]} Rhe8 {[%emt 0:01:04]} 36. Rcc2 {[%emt 0:03:05]} Re1 {[%emt 0:00:23]} 37. f3 {[%emt 0:01:19]} R8e3+ {[%emt 0:00:38]} 38. Rc3 {[%emt 0:01:04]} Rxc3+ {[%emt 0:00:45]} 39. Kxc3 {[%emt 0:00:07]} Be3 {[%emt 0:00:08]} 40. Ra2 {[%emt 0:00:13]} gxh4 {[%emt 0:00:28]} 41. Kd3 {[%emt 0:30:43]} Rh1 {[%emt 0:30:19]} 42. g4 {[%emt 0:00:22]} hxg3 {[%emt 0:00:00]} 43. Bxg3 {[%emt 0:00:00]} Rd1+ {[%emt 0:00:00]} 44. Ke2 {[%emt 0:00:00]} Rxd5 {[%emt 0:00:00]} 45. Be1 {[%emt 0:00:00]} Kb7 {[%emt 0:00:00]} 46. Bc3 {[%emt 0:00:00]} c5 {[%emt 0:00:00]} 47. Be1 {[%emt 0:00:00]} c4 {[%emt 0:00:00]} 48. Bc3 {[%emt 0:00:00]} Rh5 {[%emt 0:00:00]} 49. Kf1 {[%emt 0:00:00]} d5 {[%emt 0:00:00]} 50. Bf6 {[%emt 0:00:00]} d4 {[%emt 0:00:00]} 51. Rg2 {[%emt 0:00:00]} Rh1+ {[%emt 0:00:00]} 0-1

[Event "11th LCC FIDE Open 2019"]
[Site "London"]
[Date "2019.12.03"]
[Round "6.42"]
[White "Patel, Rishi"]
[Black "Stanisz, Patryk"]
[Result "0-1"]
[ECO "B20"]
[WhiteElo "1899"]
[BlackElo "2139"]
[Annotator "NA"]
[PlyCount "56"]
[EventDate "2019.11.29"]
[EventType "swiss"]
[EventCountry "ENG"]
[SourceTitle "playchess.com"]
[Source "ChessBase"]
[SourceQuality "1"]
[TimeControl "40/5400+30:1800+30"]

1. e4 {[%emt 0:00:00]} c5 {[%emt 0:02:31]} 2. Ne2 {[%emt 0:00:04]} a6 {[%emt 0:00:04]} 3. g3 {[%emt 0:00:14]} d5 {[%emt 0:03:48]} 4. e5 {[%emt 0:01:55]} Nc6 {[%emt 0:02:28]} 5. f4 {[%emt 0:07:27]} Bg4 {[%emt 0:10:43]} 6. h3 {[%emt 0:01:39]} Bf3 {[%emt 0:00:43]} 7. Rh2 {[%emt 0:00:57]} d4 {[%emt 0:02:21]} 8. d3 {[%emt 0:01:37]} g5 {[%emt 0:11:09]} 9. Nd2 {[%emt 0:03:09]} Bd5 {[%emt 0:00:33]} 10. Bg2 {[%emt 0:16:18]} gxf4 {[%emt 0:05:40]} 11. gxf4 {[%emt 0:01:21]} e6 {[%emt 0:00:15]} 12. Ng3 {[%emt 0:03:04]} Be7 {[%emt 0:04:03]} 13. Be4 {[%emt 0:14:10]} Bh4 {[%emt 0:01:32]} 14. Rg2 {[%emt 0:01:07]} Nge7 {[%emt 0:01:33]} 15. Nf3 {[%emt 0:01:53]} Ng6 {[%emt 0:01:53]} 16. Nxh4 {[%emt 0:01:30]} Qxh4 {[%emt 0:04:33]} 17. Qg4 {[%emt 0:00:16]} Bxe4 {[%emt 0:00:03]} 18. dxe4 {[%emt 0:00:12]} Rg8 {[%emt 0:00:24]} 19. Kd1 {[%emt 0:03:48]} Qxg4+ {[%emt 0:00:50]} 20. hxg4 {[%emt 0:00:08]} Nh4 {[%emt 0:00:08]} 21. Rh2 {[%emt 0:04:01]} Rxg4 {[%emt 0:00:22]} 22. Nh5 {[%emt 0:00:30]} O-O-O {[%emt 0:00:26]} 23. Rh1 {[%emt 0:02:12]} d3 {[%emt 0:05:38]} 24. cxd3 {[%emt 0:03:13]} Rxd3+ {[%emt 0:04:27]} 25. Ke2 {[%emt 0:01:16]} c4 {[%emt 0:02:52]} 26. Be3 {[%emt 0:01:28]} Rg2+ {[%emt 0:03:57]} 27. Bf2 {[%emt 0:01:03]} Nd4+ {[%emt 0:00:13]} 28. Kf1 {[%emt 0:00:15]} Rf3 {[%emt 0:00:10]} 0-1